[Event "Titled Tuesday Blitz March 07 Late 2023"]
[White "Preotu, Razvan"]
[Black "Sjugirov, Sanan"]
[WhiteFideId "2613280"]
[BlackFideId "4189302"]
[WhiteElo "2407"]
[BlackElo "2569"]
[Result "0-1"]
[Round "04"]
[TimeControl "180+2"]
[Date "2023.03.07"]
[WhiteClock "0:00:02"]
[BlackClock "0:00:06"]

1. e4 {[%clk 0:03:00]}  c5 {[%clk 0:03:00]} 2. Nf3 {[%clk 0:03:00]}  Nc6 {[%clk 0:03:00]} 3. Bb5 {[%clk 0:03:00]}  e6 {[%clk 0:03:00]} 4. O-O {[%clk 0:03:00]}  Nge7 {[%clk 0:03:00]} 5. Re1 {[%clk 0:03:00]}  a6 {[%clk 0:03:00]} 6. Bf1 {[%clk 0:03:00]}  d5 {[%clk 0:02:58]} 7. exd5 {[%clk 0:03:00]}  Nxd5 {[%clk 0:02:58]} 8. d4 {[%clk 0:03:00]}  Be7 {[%clk 0:02:58]} 9. c4 {[%clk 0:02:56]}  Nf6 {[%clk 0:02:57]} 10. Be3 {[%clk 0:02:53]}  cxd4 {[%clk 0:02:52]} 11. Nxd4 {[%clk 0:02:54]}  Bd7 {[%clk 0:02:50]} 12. Nc3 {[%clk 0:02:53]}  O-O {[%clk 0:02:50]} 13. Nf3 {[%clk 0:02:52]}  Qc7 {[%clk 0:02:47]} 14. h3 {[%clk 0:02:51]}  h6 {[%clk 0:02:20]} 15. a3 {[%clk 0:02:49]}  Rfd8 {[%clk 0:02:03]} 16. b4 {[%clk 0:02:49]}  e5 {[%clk 0:01:32]} 17. Nd5 {[%clk 0:01:34]}  Nxd5 {[%clk 0:01:31]} 18. cxd5 {[%clk 0:01:35]}  Be6 {[%clk 0:01:31]} 19. dxe6 {[%clk 0:01:35]}  Rxd1 {[%clk 0:01:31]} 20. exf7+ {[%clk 0:01:36]}  Kxf7 {[%clk 0:01:24]} 21. Bc4+ {[%clk 0:01:36]}  Kf8 {[%clk 0:01:20]} 22. Raxd1 {[%clk 0:01:35]}  Rd8 {[%clk 0:01:17]} 23. Rc1 {[%clk 0:01:33]}  Qd6 {[%clk 0:00:48]} 24. Nd2 {[%clk 0:01:06]}  Qg6 {[%clk 0:00:43]} 25. Nf3 {[%clk 0:01:01]}  e4 {[%clk 0:00:38]} 26. Nh2 {[%clk 0:00:51]}  Ne5 {[%clk 0:00:37]} 27. Bf4 {[%clk 0:00:43]}  Nd3 {[%clk 0:00:21]} 28. Bxd3 {[%clk 0:00:43]}  exd3 {[%clk 0:00:20]} 29. Nf3 {[%clk 0:00:43]}  Bf6 {[%clk 0:00:19]} 30. Rc7 {[%clk 0:00:40]}  Qf5 {[%clk 0:00:15]} 31. Bd2 {[%clk 0:00:38]}  Qd5 {[%clk 0:00:14]} 32. Re3 {[%clk 0:00:21]}  Kg8 {[%clk 0:00:14]} 33. Ne1 {[%clk 0:00:10]}  Qa2 {[%clk 0:00:14]} 34. Nf3 {[%clk 0:00:07]}  Qd5 {[%clk 0:00:07]} 35. Ne1 {[%clk 0:00:07]}  Qb5 {[%clk 0:00:05]} 36. Rg3 {[%clk 0:00:05]}  Kh8 {[%clk 0:00:05]} 37. Rf7 {[%clk 0:00:04]}  Qd5 {[%clk 0:00:04]} 38. Rxf6 {[%clk 0:00:02]}  gxf6 {[%clk 0:00:04]} 39. Rxd3 {[%clk 0:00:02]}  Qxd3 {[%clk 0:00:03]} 40. Nxd3 {[%clk 0:00:03]}  Rxd3 {[%clk 0:00:03]} 41. Bxh6 {[%clk 0:00:02]}  Rxa3 {[%clk 0:00:04]} 42. Bf4 {[%clk 0:00:01]}  Rb3 {[%clk 0:00:04]} 43. Bd6 {[%clk 0:00:02]}  b6 {[%clk 0:00:04]} 44. Kf1 {[%clk 0:00:02]}  a5 {[%clk 0:00:04]} 45. bxa5 {[%clk 0:00:03]}  bxa5 {[%clk 0:00:05]} 46. Ke2 {[%clk 0:00:03]}  a4 {[%clk 0:00:06]} 47. Kd2 {[%clk 0:00:04]}  a3 {[%clk 0:00:06]} 48. Kc2 {[%clk 0:00:04]}  a2 {[%clk 0:00:06]} 49. Kxb3 {[%clk 0:00:02]}  a1=Q {[%clk 0:00:06]} 0-1


[Site "https://www.chess.com"]

[Event "Titled Tuesday Blitz March 07 Late 2023"]
[White "Vazquez, Guillermo"]
[Black "Saveliev, Alexei"]
[WhiteFideId "3702308"]
[BlackFideId "24128546"]
[WhiteElo "2543"]
[BlackElo "2271"]
[Result "1-0"]
[Round "04"]
[TimeControl "180+2"]
[Date "2023.03.07"]
[WhiteClock "0:00:34"]
[BlackClock "0:00:02"]

1. b3 {[%clk 0:03:00]}  g6 {[%clk 0:03:00]} 2. Bb2 {[%clk 0:03:00]}  Nf6 {[%clk 0:03:01]} 3. Nf3 {[%clk 0:03:01]}  Bg7 {[%clk 0:03:01]} 4. g3 {[%clk 0:03:01]}  O-O {[%clk 0:03:01]} 5. Bg2 {[%clk 0:03:02]}  c5 {[%clk 0:03:02]} 6. c4 {[%clk 0:03:02]}  Nc6 {[%clk 0:03:02]} 7. O-O {[%clk 0:03:02]}  d6 {[%clk 0:02:59]} 8. d4 {[%clk 0:03:02]}  cxd4 {[%clk 0:02:59]} 9. Nxd4 {[%clk 0:03:03]}  Bd7 {[%clk 0:02:59]} 10. Nc3 {[%clk 0:03:02]}  Qa5 {[%clk 0:02:53]} 11. Nc2 {[%clk 0:02:56]}  Rfc8 {[%clk 0:02:52]} 12. Qd2 {[%clk 0:02:48]}  a6 {[%clk 0:02:51]} 13. Rfd1 {[%clk 0:02:32]}  h5 {[%clk 0:02:47]} 14. h3 {[%clk 0:02:30]}  Kh7 {[%clk 0:02:46]} 15. Rac1 {[%clk 0:02:10]}  Rab8 {[%clk 0:02:46]} 16. e4 {[%clk 0:02:07]}  b5 {[%clk 0:02:30]} 17. Ne3 {[%clk 0:02:06]}  bxc4 {[%clk 0:02:20]} 18. Nxc4 {[%clk 0:02:05]}  Qb4 {[%clk 0:02:13]} 19. Ba3 {[%clk 0:01:58]}  Qb7 {[%clk 0:02:07]} 20. Bxd6 {[%clk 0:01:51]}  exd6 {[%clk 0:02:04]} 21. Nxd6 {[%clk 0:01:50]}  Qa7 {[%clk 0:02:02]} 22. Nxc8 {[%clk 0:01:46]}  Rxc8 {[%clk 0:02:03]} 23. Qd6 {[%clk 0:01:26]}  Be6 {[%clk 0:01:36]} 24. Nd5 {[%clk 0:01:23]}  Bxd5 {[%clk 0:01:32]} 25. exd5 {[%clk 0:01:23]}  Ne7 {[%clk 0:01:33]} 26. Rxc8 {[%clk 0:01:12]}  Nxc8 {[%clk 0:01:34]} 27. Qc6 {[%clk 0:01:12]}  Ne7 {[%clk 0:01:28]} 28. Qc4 {[%clk 0:01:12]}  Nf5 {[%clk 0:01:23]} 29. d6 {[%clk 0:00:56]}  Bf8 {[%clk 0:00:23]} 30. d7 {[%clk 0:00:50]}  Nxd7 {[%clk 0:00:16]} 31. Qxf7+ {[%clk 0:00:49]}  Kh6 {[%clk 0:00:17]} 32. Rxd7 {[%clk 0:00:46]}  Qc5 {[%clk 0:00:13]} 33. Be4 {[%clk 0:00:40]}  Qc1+ {[%clk 0:00:01]} 34. Kg2 {[%clk 0:00:37]}  Ne3+ {[%clk 0:00:02]} 35. fxe3 {[%clk 0:00:37]}  Qb2+ {[%clk 0:00:02]} 36. Qf2 {[%clk 0:00:34]} 1-0


[Site "https://www.chess.com"]

[Event "Titled Tuesday Blitz March 07 Late 2023"]
[White "Czernek, Tymon"]
[Black "Keymer, Vincent"]
[WhiteFideId "1199510"]
[BlackFideId "12940690"]
[WhiteElo "2156"]
[BlackElo "2651"]
[Result "0-1"]
[Round "04"]
[TimeControl "180+2"]
[Date "2023.03.07"]
[WhiteClock "0:00:12"]
[BlackClock "0:00:07"]

1. e4 {[%clk 0:03:00]}  c6 {[%clk 0:02:56]} 2. d4 {[%clk 0:03:00]}  d5 {[%clk 0:02:57]} 3. f3 {[%clk 0:03:00]}  dxe4 {[%clk 0:02:57]} 4. fxe4 {[%clk 0:03:01]}  e5 {[%clk 0:02:58]} 5. Nf3 {[%clk 0:03:01]}  Bg4 {[%clk 0:02:58]} 6. c3 {[%clk 0:03:02]}  Nd7 {[%clk 0:02:55]} 7. Bc4 {[%clk 0:03:01]}  Bd6 {[%clk 0:02:54]} 8. O-O {[%clk 0:02:57]}  Ngf6 {[%clk 0:02:54]} 9. Bg5 {[%clk 0:02:48]}  h6 {[%clk 0:02:51]} 10. Bxf6 {[%clk 0:02:43]}  Nxf6 {[%clk 0:02:45]} 11. Nbd2 {[%clk 0:02:29]}  O-O {[%clk 0:02:29]} 12. Qc2 {[%clk 0:02:23]}  Qe7 {[%clk 0:02:12]} 13. Rae1 {[%clk 0:02:19]}  Rad8 {[%clk 0:02:10]} 14. h3 {[%clk 0:02:18]}  Bc8 {[%clk 0:01:32]} 15. Rd1 {[%clk 0:01:51]}  Nh5 {[%clk 0:01:21]} 16. d5 {[%clk 0:01:29]}  Nf4 {[%clk 0:01:00]} 17. Rfe1 {[%clk 0:01:23]}  cxd5 {[%clk 0:00:56]} 18. exd5 {[%clk 0:01:18]}  f5 {[%clk 0:00:55]} 19. Nf1 {[%clk 0:01:12]}  e4 {[%clk 0:00:51]} 20. Nd4 {[%clk 0:01:11]}  Qg5 {[%clk 0:00:48]} 21. Kh1 {[%clk 0:01:06]}  Kh8 {[%clk 0:00:38]} 22. Ne6 {[%clk 0:01:05]}  Bxe6 {[%clk 0:00:29]} 23. dxe6 {[%clk 0:01:06]}  Qe7 {[%clk 0:00:29]} 24. Qb3 {[%clk 0:01:02]}  Bc5 {[%clk 0:00:21]} 25. Rxd8 {[%clk 0:00:39]}  Rxd8 {[%clk 0:00:22]} 26. Rd1 {[%clk 0:00:40]}  Re8 {[%clk 0:00:14]} 27. Kh2 {[%clk 0:00:16]}  Nxe6 {[%clk 0:00:10]} 28. Bxe6 {[%clk 0:00:16]}  Qxe6 {[%clk 0:00:10]} 29. Qxe6 {[%clk 0:00:16]}  Rxe6 {[%clk 0:00:11]} 30. Kg3 {[%clk 0:00:12]}  g6 {[%clk 0:00:08]} 31. Kf4 {[%clk 0:00:11]}  Kg7 {[%clk 0:00:08]} 32. g4 {[%clk 0:00:08]}  Kf6 {[%clk 0:00:07]} 33. gxf5 {[%clk 0:00:08]}  gxf5 {[%clk 0:00:08]} 34. Rd5 {[%clk 0:00:08]}  Bd6+ {[%clk 0:00:08]} 35. Ke3 {[%clk 0:00:08]}  Be5 {[%clk 0:00:07]} 36. Nd2 {[%clk 0:00:07]}  Rd6 {[%clk 0:00:07]} 37. Rxd6+ {[%clk 0:00:05]}  Bxd6 {[%clk 0:00:08]} 38. Nxe4+ {[%clk 0:00:04]}  fxe4 {[%clk 0:00:07]} 39. Kxe4 {[%clk 0:00:05]}  Kg5 {[%clk 0:00:07]} 40. Kd5 {[%clk 0:00:06]}  Bf4 {[%clk 0:00:06]} 41. c4 {[%clk 0:00:05]}  Kh4 {[%clk 0:00:06]} 42. Ke6 {[%clk 0:00:06]}  Kxh3 {[%clk 0:00:06]} 43. Kd7 {[%clk 0:00:06]}  h5 {[%clk 0:00:06]} 44. Kc8 {[%clk 0:00:07]}  b6 {[%clk 0:00:06]} 45. Kb7 {[%clk 0:00:08]}  h4 {[%clk 0:00:07]} 46. b4 {[%clk 0:00:09]}  Kg2 {[%clk 0:00:06]} 47. c5 {[%clk 0:00:10]}  bxc5 {[%clk 0:00:07]} 48. bxc5 {[%clk 0:00:10]}  h3 {[%clk 0:00:07]} 49. c6 {[%clk 0:00:11]}  h2 {[%clk 0:00:08]} 50. Kxa7 {[%clk 0:00:12]}  h1=Q {[%clk 0:00:08]} 51. c7 {[%clk 0:00:12]}  Bxc7 {[%clk 0:00:07]} 0-1


[Site "https://www.chess.com"]

[Event "Titled Tuesday Blitz March 07 Late 2023"]
[White "Andreikin, Dmitry"]
[Black "Ismagilov, Damir"]
[WhiteFideId "4158814"]
[BlackFideId "34199982"]
[WhiteElo "2736"]
[BlackElo "2078"]
[Result "1-0"]
[Round "04"]
[TimeControl "180+2"]
[Date "2023.03.07"]
[WhiteClock "0:02:09"]
[BlackClock "0:01:11"]

1. Nf3 {[%clk 0:02:55]}  d5 {[%clk 0:02:58]} 2. d4 {[%clk 0:02:54]}  Nf6 {[%clk 0:02:58]} 3. c4 {[%clk 0:02:54]}  e6 {[%clk 0:02:57]} 4. Bg5 {[%clk 0:02:53]}  h6 {[%clk 0:02:57]} 5. Bxf6 {[%clk 0:02:52]}  Qxf6 {[%clk 0:02:58]} 6. e3 {[%clk 0:02:52]}  c6 {[%clk 0:02:36]} 7. Bd3 {[%clk 0:02:51]}  Nd7 {[%clk 0:02:33]} 8. O-O {[%clk 0:02:50]}  Bd6 {[%clk 0:02:32]} 9. Nbd2 {[%clk 0:02:47]}  O-O {[%clk 0:02:30]} 10. e4 {[%clk 0:02:48]}  dxe4 {[%clk 0:02:30]} 11. Nxe4 {[%clk 0:02:47]}  Qe7 {[%clk 0:02:30]} 12. Nxd6 {[%clk 0:02:47]}  Qxd6 {[%clk 0:02:30]} 13. c5 {[%clk 0:02:40]}  Qe7 {[%clk 0:02:25]} 14. b4 {[%clk 0:02:36]}  Nf6 {[%clk 0:02:19]} 15. Ne5 {[%clk 0:02:30]}  Rd8 {[%clk 0:02:18]} 16. Bc2 {[%clk 0:02:30]}  Bd7 {[%clk 0:02:14]} 17. Qd3 {[%clk 0:02:29]}  Be8 {[%clk 0:02:04]} 18. a3 {[%clk 0:02:27]}  g6 {[%clk 0:01:56]} 19. Rae1 {[%clk 0:02:25]}  Kg7 {[%clk 0:01:55]} 20. f4 {[%clk 0:02:24]}  a5 {[%clk 0:01:49]} 21. f5 {[%clk 0:02:15]}  exf5 {[%clk 0:01:12]} 22. Nxg6 {[%clk 0:02:12]}  Qd7 {[%clk 0:01:11]} 23. Ne7 {[%clk 0:02:09]} 1-0


[Site "https://www.chess.com"]

[Event "Titled Tuesday Blitz March 07 Late 2023"]
[White "Derige Kane, Yan"]
[Black "Indjic, Aleksandar"]
[WhiteFideId "20665431"]
[BlackFideId "911925"]
[WhiteElo "2149"]
[BlackElo "2614"]
[Result "0-1"]
[Round "04"]
[TimeControl "180+2"]
[Date "2023.03.07"]
[WhiteClock "0:00:02"]
[BlackClock "0:01:19"]

1. d4 {[%clk 0:02:54]}  Nf6 {[%clk 0:02:58]} 2. c4 {[%clk 0:02:52]}  e6 {[%clk 0:02:58]} 3. Nf3 {[%clk 0:02:50]}  c5 {[%clk 0:02:58]} 4. d5 {[%clk 0:02:50]}  d6 {[%clk 0:02:58]} 5. Nc3 {[%clk 0:02:50]}  exd5 {[%clk 0:02:59]} 6. cxd5 {[%clk 0:02:50]}  g6 {[%clk 0:02:58]} 7. e4 {[%clk 0:02:50]}  a6 {[%clk 0:02:57]} 8. a4 {[%clk 0:02:50]}  Bg4 {[%clk 0:02:58]} 9. h3 {[%clk 0:02:50]}  Bxf3 {[%clk 0:02:58]} 10. Qxf3 {[%clk 0:02:51]}  Nbd7 {[%clk 0:02:55]} 11. Qd1 {[%clk 0:02:46]}  Bg7 {[%clk 0:02:53]} 12. Be2 {[%clk 0:02:46]}  O-O {[%clk 0:02:53]} 13. O-O {[%clk 0:02:47]}  Re8 {[%clk 0:02:53]} 14. f3 {[%clk 0:02:47]}  Rc8 {[%clk 0:02:49]} 15. Bf4 {[%clk 0:02:47]}  Nh5 {[%clk 0:02:34]} 16. Be3 {[%clk 0:02:17]}  g5 {[%clk 0:02:25]} 17. Qd2 {[%clk 0:02:08]}  h6 {[%clk 0:02:24]} 18. f4 {[%clk 0:01:59]}  Nxf4 {[%clk 0:02:23]} 19. Bxf4 {[%clk 0:02:00]}  gxf4 {[%clk 0:02:22]} 20. Rxf4 {[%clk 0:02:00]}  Ne5 {[%clk 0:02:05]} 21. Raf1 {[%clk 0:01:53]}  Rc7 {[%clk 0:02:05]} 22. Rf5 {[%clk 0:01:51]}  Qh4 {[%clk 0:01:59]} 23. R1f4 {[%clk 0:01:27]}  Qe7 {[%clk 0:01:50]} 24. Bh5 {[%clk 0:01:24]}  Rf8 {[%clk 0:01:50]} 25. Ne2 {[%clk 0:00:58]}  b5 {[%clk 0:01:47]} 26. axb5 {[%clk 0:00:56]}  axb5 {[%clk 0:01:48]} 27. Ng3 {[%clk 0:00:54]}  Ra7 {[%clk 0:01:48]} 28. Kh2 {[%clk 0:00:53]}  c4 {[%clk 0:01:45]} 29. Be2 {[%clk 0:00:37]}  Ra2 {[%clk 0:01:42]} 30. Nh5 {[%clk 0:00:35]}  Rxb2 {[%clk 0:01:39]} 31. Qe1 {[%clk 0:00:19]}  b4 {[%clk 0:01:25]} 32. Qg3 {[%clk 0:00:02]}  Ng6 {[%clk 0:01:19]} 0-1


[Site "https://www.chess.com"]

[Event "Titled Tuesday Blitz March 07 Late 2023"]
[White "Holt, Conrad"]
[Black "Urbina Perez, Juan Antonio"]
[WhiteFideId "2034387"]
[BlackFideId "2217368"]
[WhiteElo "2592"]
[BlackElo "2197"]
[Result "1-0"]
[Round "04"]
[TimeControl "180+2"]
[Date "2023.03.07"]
[WhiteClock "0:01:29"]
[BlackClock "0:01:04"]

1. d4 {[%clk 0:03:00]}  Nf6 {[%clk 0:02:58]} 2. c4 {[%clk 0:03:01]}  g6 {[%clk 0:02:59]} 3. Nc3 {[%clk 0:03:01]}  d5 {[%clk 0:02:59]} 4. e3 {[%clk 0:03:02]}  Bg7 {[%clk 0:02:58]} 5. Qb3 {[%clk 0:03:02]}  c6 {[%clk 0:02:55]} 6. Nf3 {[%clk 0:03:00]}  O-O {[%clk 0:02:55]} 7. Be2 {[%clk 0:02:58]}  dxc4 {[%clk 0:02:52]} 8. Bxc4 {[%clk 0:02:59]}  Qb6 {[%clk 0:02:51]} 9. O-O {[%clk 0:02:57]}  Qxb3 {[%clk 0:02:51]} 10. axb3 {[%clk 0:02:54]}  Nbd7 {[%clk 0:02:49]} 11. b4 {[%clk 0:02:52]}  Nb6 {[%clk 0:02:45]} 12. Bb3 {[%clk 0:02:51]}  Bf5 {[%clk 0:02:41]} 13. Ne5 {[%clk 0:02:44]}  Nfd7 {[%clk 0:02:32]} 14. Nxd7 {[%clk 0:02:40]}  Nxd7 {[%clk 0:02:33]} 15. e4 {[%clk 0:02:38]}  Be6 {[%clk 0:02:33]} 16. Bxe6 {[%clk 0:02:37]}  fxe6 {[%clk 0:02:33]} 17. Be3 {[%clk 0:02:37]}  Nb6 {[%clk 0:02:31]} 18. b3 {[%clk 0:02:36]}  Rfd8 {[%clk 0:02:24]} 19. Rfd1 {[%clk 0:02:32]}  a6 {[%clk 0:02:22]} 20. Rac1 {[%clk 0:02:29]}  Nd7 {[%clk 0:02:21]} 21. Kf1 {[%clk 0:02:24]}  Nf6 {[%clk 0:02:21]} 22. h3 {[%clk 0:02:20]}  Rd7 {[%clk 0:02:21]} 23. Ke2 {[%clk 0:02:19]}  Rad8 {[%clk 0:02:21]} 24. g4 {[%clk 0:02:16]}  Ne8 {[%clk 0:02:21]} 25. e5 {[%clk 0:02:12]}  Nc7 {[%clk 0:02:18]} 26. f4 {[%clk 0:02:10]}  Nd5 {[%clk 0:02:17]} 27. Nxd5 {[%clk 0:02:10]}  exd5 {[%clk 0:02:18]} 28. f5 {[%clk 0:02:07]}  Rc7 {[%clk 0:02:07]} 29. Rf1 {[%clk 0:02:01]}  Bf8 {[%clk 0:01:58]} 30. Bd2 {[%clk 0:01:57]}  Ra8 {[%clk 0:01:35]} 31. Rf3 {[%clk 0:01:55]}  Rcc8 {[%clk 0:01:35]} 32. h4 {[%clk 0:01:54]}  Bg7 {[%clk 0:01:34]} 33. h5 {[%clk 0:01:50]}  gxh5 {[%clk 0:01:29]} 34. g5 {[%clk 0:01:48]}  Kf7 {[%clk 0:01:24]} 35. e6+ {[%clk 0:01:41]}  Ke8 {[%clk 0:01:15]} 36. f6 {[%clk 0:01:42]}  Bf8 {[%clk 0:01:14]} 37. f7+ {[%clk 0:01:38]}  Kd8 {[%clk 0:01:14]} 38. Bf4 {[%clk 0:01:38]}  a5 {[%clk 0:01:10]} 39. Rh1 {[%clk 0:01:30]}  axb4 {[%clk 0:01:10]} 40. Rxh5 {[%clk 0:01:30]}  Ra2+ {[%clk 0:01:08]} 41. Kf1 {[%clk 0:01:30]}  Rca8 {[%clk 0:01:08]} 42. Rxh7 {[%clk 0:01:28]}  Ra1+ {[%clk 0:01:08]} 43. Kg2 {[%clk 0:01:28]}  R8a2+ {[%clk 0:01:06]} 44. Rf2 {[%clk 0:01:29]}  Rxf2+ {[%clk 0:01:05]} 45. Kxf2 {[%clk 0:01:29]}  Ra2+ {[%clk 0:01:04]} 46. Kf3 {[%clk 0:01:29]} 1-0


[Site "https://www.chess.com"]

[Event "Titled Tuesday Blitz March 07 Late 2023"]
[White "Petukhov, Dmitry"]
[Black "Naroditsky, Daniel"]
[WhiteFideId "4142748"]
[BlackFideId "2026961"]
[WhiteElo "2311"]
[BlackElo "2633"]
[Result "0-1"]
[Round "04"]
[TimeControl "180+2"]
[Date "2023.03.07"]
[WhiteClock "0:00:04"]
[BlackClock "0:00:57"]

1. e4 {[%clk 0:03:00]}  c5 {[%clk 0:02:59]} 2. c3 {[%clk 0:02:59]}  d5 {[%clk 0:02:59]} 3. exd5 {[%clk 0:03:00]}  Nf6 {[%clk 0:03:00]} 4. d4 {[%clk 0:03:01]}  cxd4 {[%clk 0:03:00]} 5. c4 {[%clk 0:02:54]}  e6 {[%clk 0:02:58]} 6. dxe6 {[%clk 0:02:46]}  Bxe6 {[%clk 0:02:55]} 7. Nf3 {[%clk 0:02:42]}  Nc6 {[%clk 0:02:52]} 8. a3 {[%clk 0:02:34]}  a5 {[%clk 0:02:50]} 9. Bd3 {[%clk 0:02:35]}  Bd6 {[%clk 0:02:49]} 10. h3 {[%clk 0:02:34]}  h6 {[%clk 0:02:49]} 11. O-O {[%clk 0:02:35]}  O-O {[%clk 0:02:50]} 12. Nbd2 {[%clk 0:02:34]}  Qd7 {[%clk 0:02:51]} 13. Ne4 {[%clk 0:02:28]}  Nxe4 {[%clk 0:02:49]} 14. Bxe4 {[%clk 0:02:29]}  Bxc4 {[%clk 0:02:49]} 15. Re1 {[%clk 0:02:29]}  Rfe8 {[%clk 0:02:47]} 16. Bd2 {[%clk 0:02:15]}  Bc7 {[%clk 0:02:39]} 17. Rc1 {[%clk 0:02:10]}  Bd5 {[%clk 0:02:35]} 18. Bxd5 {[%clk 0:01:47]}  Qxd5 {[%clk 0:02:36]} 19. Be3 {[%clk 0:01:29]}  Bb6 {[%clk 0:02:26]} 20. Qd3 {[%clk 0:01:21]}  Re6 {[%clk 0:01:53]} 21. Bf4 {[%clk 0:01:04]}  Rae8 {[%clk 0:01:52]} 22. Rxe6 {[%clk 0:01:03]}  Rxe6 {[%clk 0:01:53]} 23. Rd1 {[%clk 0:01:03]}  a4 {[%clk 0:01:48]} 24. Nd2 {[%clk 0:00:39]}  Ba5 {[%clk 0:01:36]} 25. Qc4 {[%clk 0:00:37]}  Qf5 {[%clk 0:01:28]} 26. Bg3 {[%clk 0:00:28]}  b5 {[%clk 0:01:27]} 27. Qc1 {[%clk 0:00:23]}  d3 {[%clk 0:01:28]} 28. Nf3 {[%clk 0:00:20]}  Qd5 {[%clk 0:01:26]} 29. Qf4 {[%clk 0:00:19]}  Bb6 {[%clk 0:01:20]} 30. Kh2 {[%clk 0:00:18]}  Bc5 {[%clk 0:01:12]} 31. Rd2 {[%clk 0:00:18]}  Bd6 {[%clk 0:01:10]} 32. Qh4 {[%clk 0:00:18]}  Be7 {[%clk 0:01:09]} 33. Qf4 {[%clk 0:00:17]}  Bf6 {[%clk 0:01:09]} 34. Qc7 {[%clk 0:00:16]}  Re2 {[%clk 0:01:06]} 35. Rd1 {[%clk 0:00:10]}  Bxb2 {[%clk 0:01:02]} 36. Nh4 {[%clk 0:00:05]}  Be5 {[%clk 0:00:58]} 37. Nf5 {[%clk 0:00:04]}  Bxc7 {[%clk 0:00:57]} 0-1


[Site "https://www.chess.com"]

[Event "Titled Tuesday Blitz March 07 Late 2023"]
[White "Matlakov, Maxim"]
[Black "Jimenez Almeida, Luis David"]
[WhiteFideId "4168003"]
[BlackFideId "22242244"]
[WhiteElo "2666"]
[BlackElo "2245"]
[Result "1-0"]
[Round "04"]
[TimeControl "180+2"]
[Date "2023.03.07"]
[WhiteClock "0:00:45"]
[BlackClock "0:00:06"]

1. d4 {[%clk 0:03:00]}  g6 {[%clk 0:02:58]} 2. e4 {[%clk 0:03:00]}  c6 {[%clk 0:02:57]} 3. c4 {[%clk 0:02:56]}  Bg7 {[%clk 0:02:56]} 4. Nc3 {[%clk 0:02:56]}  Na6 {[%clk 0:02:55]} 5. Be3 {[%clk 0:02:56]}  d6 {[%clk 0:02:55]} 6. Be2 {[%clk 0:02:55]}  Nc7 {[%clk 0:02:55]} 7. Nf3 {[%clk 0:02:54]}  Nf6 {[%clk 0:02:55]} 8. O-O {[%clk 0:02:54]}  O-O {[%clk 0:02:54]} 9. h3 {[%clk 0:02:54]}  a5 {[%clk 0:02:50]} 10. Rc1 {[%clk 0:02:49]}  Re8 {[%clk 0:02:48]} 11. Re1 {[%clk 0:02:49]}  b6 {[%clk 0:02:40]} 12. e5 {[%clk 0:02:48]}  dxe5 {[%clk 0:02:38]} 13. Nxe5 {[%clk 0:02:49]}  Bb7 {[%clk 0:02:36]} 14. Bf3 {[%clk 0:02:49]}  Qd6 {[%clk 0:02:27]} 15. Qb3 {[%clk 0:02:47]}  Ne6 {[%clk 0:02:06]} 16. Qxb6 {[%clk 0:02:39]}  Qb4 {[%clk 0:02:06]} 17. d5 {[%clk 0:02:24]}  cxd5 {[%clk 0:02:01]} 18. cxd5 {[%clk 0:02:16]}  Qxb6 {[%clk 0:01:32]} 19. Bxb6 {[%clk 0:02:16]}  Nf4 {[%clk 0:01:33]} 20. Rcd1 {[%clk 0:02:03]}  g5 {[%clk 0:01:02]} 21. Be3 {[%clk 0:01:44]}  a4 {[%clk 0:01:00]} 22. a3 {[%clk 0:01:43]}  Rab8 {[%clk 0:00:59]} 23. h4 {[%clk 0:01:41]}  h6 {[%clk 0:00:59]} 24. hxg5 {[%clk 0:01:39]}  hxg5 {[%clk 0:00:59]} 25. g3 {[%clk 0:01:37]}  Ng6 {[%clk 0:00:29]} 26. Nxg6 {[%clk 0:01:34]}  fxg6 {[%clk 0:00:30]} 27. Bxg5 {[%clk 0:01:35]}  Bc8 {[%clk 0:00:29]} 28. Nxa4 {[%clk 0:01:33]}  Kf7 {[%clk 0:00:25]} 29. b4 {[%clk 0:01:31]}  Ra8 {[%clk 0:00:24]} 30. Nb6 {[%clk 0:01:30]}  Rxa3 {[%clk 0:00:24]} 31. Nxc8 {[%clk 0:01:26]}  Rxc8 {[%clk 0:00:25]} 32. Kg2 {[%clk 0:01:23]}  Rb3 {[%clk 0:00:23]} 33. d6 {[%clk 0:01:22]}  exd6 {[%clk 0:00:21]} 34. Bxf6 {[%clk 0:01:23]}  Kxf6 {[%clk 0:00:21]} 35. Rxd6+ {[%clk 0:01:22]}  Kg5 {[%clk 0:00:21]} 36. Rd5+ {[%clk 0:01:19]}  Kf6 {[%clk 0:00:19]} 37. Rd6+ {[%clk 0:01:19]}  Kg5 {[%clk 0:00:19]} 38. Be4 {[%clk 0:01:18]}  Bf6 {[%clk 0:00:13]} 39. f4+ {[%clk 0:01:17]}  Kg4 {[%clk 0:00:13]} 40. Rxf6 {[%clk 0:01:14]}  Rb2+ {[%clk 0:00:13]} 41. Kf1 {[%clk 0:01:08]}  Kxg3 {[%clk 0:00:14]} 42. Re3+ {[%clk 0:01:03]}  Kg4 {[%clk 0:00:14]} 43. Bf3+ {[%clk 0:01:00]}  Kh4 {[%clk 0:00:12]} 44. Be2 {[%clk 0:00:54]}  Rxb4 {[%clk 0:00:10]} 45. Kg2 {[%clk 0:00:54]}  Rxf4 {[%clk 0:00:03]} 46. Rxf4+ {[%clk 0:00:50]}  Kg5 {[%clk 0:00:04]} 47. Rg4+ {[%clk 0:00:50]}  Kf5 {[%clk 0:00:04]} 48. Rf3+ {[%clk 0:00:47]}  Ke5 {[%clk 0:00:04]} 49. Rxg6 {[%clk 0:00:46]}  Rc2 {[%clk 0:00:04]} 50. Kf2 {[%clk 0:00:46]}  Kd4 {[%clk 0:00:04]} 51. Rg5 {[%clk 0:00:46]}  Ke4 {[%clk 0:00:05]} 52. Rh3 {[%clk 0:00:45]}  Kf4 {[%clk 0:00:05]} 53. Rg4+ {[%clk 0:00:45]}  Kf5 {[%clk 0:00:05]} 54. Rh5+ {[%clk 0:00:46]}  Kf6 {[%clk 0:00:06]} 55. Ra4 {[%clk 0:00:45]}  Rc6 {[%clk 0:00:06]} 56. Ra6 {[%clk 0:00:45]} 1-0


[Site "https://www.chess.com"]

[Event "Titled Tuesday Blitz March 07 Late 2023"]
[White "Liang, Awonder"]
[Black "Blomqvist, Erik"]
[WhiteFideId "2056437"]
[BlackFideId "1709437"]
[WhiteElo "2508"]
[BlackElo "2436"]
[Result "1-0"]
[Round "04"]
[TimeControl "180+2"]
[Date "2023.03.07"]
[WhiteClock "0:02:02"]
[BlackClock "0:00:53"]

1. b3 {[%clk 0:03:00]}  g6 {[%clk 0:02:59]} 2. Bb2 {[%clk 0:03:01]}  Nf6 {[%clk 0:03:00]} 3. e4 {[%clk 0:02:59]}  c5 {[%clk 0:03:00]} 4. Nc3 {[%clk 0:02:56]}  Bg7 {[%clk 0:02:59]} 5. Qe2 {[%clk 0:02:56]}  Nc6 {[%clk 0:02:58]} 6. O-O-O {[%clk 0:02:57]}  d6 {[%clk 0:02:52]} 7. f4 {[%clk 0:02:56]}  O-O {[%clk 0:02:42]} 8. Nf3 {[%clk 0:02:56]}  Bg4 {[%clk 0:02:38]} 9. Qf2 {[%clk 0:02:43]}  Qa5 {[%clk 0:02:22]} 10. Kb1 {[%clk 0:02:41]}  a6 {[%clk 0:02:15]} 11. Be2 {[%clk 0:02:37]}  b5 {[%clk 0:02:11]} 12. Qe3 {[%clk 0:02:36]}  Rac8 {[%clk 0:01:59]} 13. h3 {[%clk 0:02:26]}  Bxf3 {[%clk 0:01:54]} 14. Bxf3 {[%clk 0:02:27]}  Nd4 {[%clk 0:01:53]} 15. e5 {[%clk 0:02:07]}  dxe5 {[%clk 0:01:47]} 16. fxe5 {[%clk 0:02:08]}  Nd7 {[%clk 0:01:48]} 17. h4 {[%clk 0:02:02]}  Nxe5 {[%clk 0:01:44]} 18. h5 {[%clk 0:02:02]}  Nexf3 {[%clk 0:01:23]} 19. gxf3 {[%clk 0:02:03]}  Qb6 {[%clk 0:00:59]} 20. Nd5 {[%clk 0:02:03]}  Qd6 {[%clk 0:00:53]} 21. Nxe7+ {[%clk 0:02:03]}  Kh8 {[%clk 0:00:53]} 22. hxg6 {[%clk 0:02:03]}  fxg6 {[%clk 0:00:53]} 23. Rxh7+ {[%clk 0:02:02]} 1-0


[Site "https://www.chess.com"]